[Event "Titled Tuesday Blitz March 28 Late 2023"]
[White "Guzman Moneo, Alberto"]
[Black "Belov, Alexei"]
[WhiteFideId "2209616"]
[BlackFideId "4128206"]
[WhiteElo "2157"]
[BlackElo "2534"]
[Result "0-1"]
[Round "09"]
[TimeControl "180+2"]
[Date "2023.03.28"]
[WhiteClock "0:00:02"]
[BlackClock "0:00:51"]

1. Nf3 {[%clk 0:02:59]}  Nf6 {[%clk 0:02:59]} 2. c4 {[%clk 0:02:57]}  e6 {[%clk 0:02:59]} 3. g3 {[%clk 0:02:57]}  d5 {[%clk 0:02:59]} 4. Bg2 {[%clk 0:02:57]}  Be7 {[%clk 0:03:00]} 5. O-O {[%clk 0:02:57]}  O-O {[%clk 0:03:01]} 6. d4 {[%clk 0:02:57]}  dxc4 {[%clk 0:03:00]} 7. Ne5 {[%clk 0:02:54]}  Nc6 {[%clk 0:03:00]} 8. Bxc6 {[%clk 0:02:54]}  bxc6 {[%clk 0:03:00]} 9. Nxc6 {[%clk 0:02:55]}  Qe8 {[%clk 0:03:01]} 10. Nxe7+ {[%clk 0:02:56]}  Qxe7 {[%clk 0:03:02]} 11. Qa4 {[%clk 0:02:40]}  e5 {[%clk 0:03:00]} 12. dxe5 {[%clk 0:02:35]}  Qxe5 {[%clk 0:03:00]} 13. Qxc4 {[%clk 0:02:34]}  Be6 {[%clk 0:03:00]} 14. Qc3 {[%clk 0:02:20]}  Qh5 {[%clk 0:02:59]} 15. Nd2 {[%clk 0:02:09]}  Qxe2 {[%clk 0:02:56]} 16. Nf3 {[%clk 0:01:58]}  Bd5 {[%clk 0:02:52]} 17. Nd4 {[%clk 0:01:55]}  Qh5 {[%clk 0:02:40]} 18. Bf4 {[%clk 0:01:38]}  Rac8 {[%clk 0:02:36]} 19. Rfe1 {[%clk 0:01:33]}  c5 {[%clk 0:02:34]} 20. Nc2 {[%clk 0:01:18]}  Ne4 {[%clk 0:02:29]} 21. Qe5 {[%clk 0:01:09]}  Qxe5 {[%clk 0:02:16]} 22. Bxe5 {[%clk 0:01:10]}  Rfe8 {[%clk 0:02:16]} 23. Bf4 {[%clk 0:01:08]}  g5 {[%clk 0:02:12]} 24. Be3 {[%clk 0:01:03]}  f6 {[%clk 0:02:12]} 25. b3 {[%clk 0:00:54]}  Nc3 {[%clk 0:02:06]} 26. Bd2 {[%clk 0:00:49]}  Ne2+ {[%clk 0:02:04]} 27. Kf1 {[%clk 0:00:46]}  Bf3 {[%clk 0:02:03]} 28. Ne3 {[%clk 0:00:40]}  Nd4 {[%clk 0:02:02]} 29. Rac1 {[%clk 0:00:34]}  Kf7 {[%clk 0:01:57]} 30. Bc3 {[%clk 0:00:30]}  Kg6 {[%clk 0:01:52]} 31. b4 {[%clk 0:00:26]}  Bb7 {[%clk 0:01:34]} 32. bxc5 {[%clk 0:00:25]}  Ba6+ {[%clk 0:01:34]} 33. Kg2 {[%clk 0:00:24]}  Ne2 {[%clk 0:01:34]} 34. Rc2 {[%clk 0:00:20]}  Rxc5 {[%clk 0:01:34]} 35. Bb4 {[%clk 0:00:17]}  Rxc2 {[%clk 0:01:31]} 36. Nxc2 {[%clk 0:00:18]}  Bd3 {[%clk 0:01:27]} 37. Ne3 {[%clk 0:00:15]}  Nd4 {[%clk 0:01:26]} 38. f3 {[%clk 0:00:12]}  Be2 {[%clk 0:01:20]} 39. f4 {[%clk 0:00:11]}  Bf3+ {[%clk 0:01:17]} 40. Kf2 {[%clk 0:00:11]}  Ba8 {[%clk 0:01:12]} 41. Bc3 {[%clk 0:00:10]}  Nb5 {[%clk 0:01:09]} 42. f5+ {[%clk 0:00:09]}  Kf7 {[%clk 0:01:07]} 43. Bb2 {[%clk 0:00:09]}  Rc8 {[%clk 0:01:07]} 44. Ng4 {[%clk 0:00:08]}  Nc3 {[%clk 0:00:59]} 45. Re6 {[%clk 0:00:02]}  Ne4+ {[%clk 0:00:55]} 46. Ke3 {[%clk 0:00:02]}  Bd5 {[%clk 0:00:51]} 0-1


[Site "https://www.chess.com"]

[Event "Titled Tuesday Blitz March 28 Late 2023"]
[White "cryptoguru02"]
[Black "Castella Garcia, Fausto"]
[BlackFideId "3501922"]
[WhiteElo "2528"]
[BlackElo "2245"]
[Result "1-0"]
[Round "09"]
[TimeControl "180+2"]
[Date "2023.03.28"]
[WhiteClock "0:01:02"]
[BlackClock "0:00:09"]

1. d4 {[%clk 0:03:00]}  Nf6 {[%clk 0:02:59]} 2. c4 {[%clk 0:03:00]}  g6 {[%clk 0:02:59]} 3. Nc3 {[%clk 0:02:59]}  Bg7 {[%clk 0:03:00]} 4. e4 {[%clk 0:03:00]}  O-O {[%clk 0:03:00]} 5. Be2 {[%clk 0:03:00]}  d6 {[%clk 0:03:00]} 6. Be3 {[%clk 0:03:00]}  c5 {[%clk 0:02:59]} 7. d5 {[%clk 0:02:57]}  e6 {[%clk 0:02:50]} 8. Nf3 {[%clk 0:02:56]}  exd5 {[%clk 0:02:49]} 9. cxd5 {[%clk 0:02:57]}  Ng4 {[%clk 0:02:46]} 10. Bg5 {[%clk 0:02:48]}  Qa5 {[%clk 0:02:37]} 11. Nd2 {[%clk 0:02:33]}  Ne5 {[%clk 0:02:14]} 12. Be7 {[%clk 0:02:26]}  Re8 {[%clk 0:02:04]} 13. Bxd6 {[%clk 0:02:25]}  Qb6 {[%clk 0:02:04]} 14. Bxe5 {[%clk 0:02:22]}  Bxe5 {[%clk 0:01:58]} 15. Nc4 {[%clk 0:02:22]}  Bxc3+ {[%clk 0:01:46]} 16. bxc3 {[%clk 0:02:21]}  Qf6 {[%clk 0:01:45]} 17. e5 {[%clk 0:02:17]}  Qf4 {[%clk 0:01:38]} 18. g3 {[%clk 0:02:07]}  Qg5 {[%clk 0:01:07]} 19. O-O {[%clk 0:02:05]}  Bh3 {[%clk 0:01:02]} 20. f4 {[%clk 0:01:59]}  Qd8 {[%clk 0:00:57]} 21. Rf2 {[%clk 0:01:58]}  Nd7 {[%clk 0:00:52]} 22. Bg4 {[%clk 0:01:51]}  Bxg4 {[%clk 0:00:48]} 23. Qxg4 {[%clk 0:01:52]}  f5 {[%clk 0:00:38]} 24. Qe2 {[%clk 0:01:40]}  Nf6 {[%clk 0:00:26]} 25. Nd6 {[%clk 0:01:26]}  Ng4 {[%clk 0:00:26]} 26. Nxe8 {[%clk 0:01:22]}  Qxe8 {[%clk 0:00:20]} 27. Rf3 {[%clk 0:01:22]}  Rd8 {[%clk 0:00:19]} 28. c4 {[%clk 0:01:18]}  Qa4 {[%clk 0:00:17]} 29. Rd1 {[%clk 0:01:17]}  b5 {[%clk 0:00:12]} 30. h3 {[%clk 0:01:16]}  Nh6 {[%clk 0:00:11]} 31. cxb5 {[%clk 0:01:14]}  Nf7 {[%clk 0:00:11]} 32. d6 {[%clk 0:01:08]}  c4 {[%clk 0:00:09]} 33. Rc3 {[%clk 0:01:02]} 1-0


[Site "https://www.chess.com"]

[Event "Titled Tuesday Blitz March 28 Late 2023"]
[White "micke12a"]
[Black "Toniutti, Ezio"]
[BlackFideId "113034"]
[WhiteElo "2335"]
[BlackElo "2215"]
[Result "0-1"]
[Round "09"]
[TimeControl "180+2"]
[Date "2023.03.28"]
[WhiteClock "0:00:01"]
[BlackClock "0:00:11"]

1. Nf3 {[%clk 0:03:00]}  d5 {[%clk 0:02:52]} 2. e3 {[%clk 0:02:58]}  Nf6 {[%clk 0:02:44]} 3. c4 {[%clk 0:02:58]}  c6 {[%clk 0:02:44]} 4. Nc3 {[%clk 0:02:57]}  a6 {[%clk 0:02:44]} 5. b3 {[%clk 0:02:50]}  Bf5 {[%clk 0:02:43]} 6. Bb2 {[%clk 0:02:50]}  e6 {[%clk 0:02:43]} 7. Be2 {[%clk 0:02:46]}  h6 {[%clk 0:02:43]} 8. O-O {[%clk 0:02:45]}  Be7 {[%clk 0:02:43]} 9. Rc1 {[%clk 0:02:45]}  O-O {[%clk 0:02:43]} 10. Re1 {[%clk 0:02:41]}  Nbd7 {[%clk 0:02:43]} 11. d3 {[%clk 0:02:37]}  Bh7 {[%clk 0:02:41]} 12. Bf1 {[%clk 0:02:37]}  Re8 {[%clk 0:02:37]} 13. e4 {[%clk 0:02:34]}  dxe4 {[%clk 0:02:38]} 14. dxe4 {[%clk 0:02:34]}  Nc5 {[%clk 0:02:34]} 15. Qc2 {[%clk 0:02:33]}  a5 {[%clk 0:02:23]} 16. Rcd1 {[%clk 0:02:33]}  Qb6 {[%clk 0:02:22]} 17. Ba3 {[%clk 0:01:54]}  Rad8 {[%clk 0:02:16]} 18. Rxd8 {[%clk 0:01:50]}  Rxd8 {[%clk 0:02:17]} 19. Na4 {[%clk 0:01:17]}  Qa7 {[%clk 0:02:05]} 20. Rd1 {[%clk 0:00:30]}  Rxd1 {[%clk 0:01:44]} 21. Qxd1 {[%clk 0:00:30]}  Bxe4 {[%clk 0:01:40]} 22. Ne5 {[%clk 0:00:15]}  Qb8 {[%clk 0:00:54]} 23. Bxc5 {[%clk 0:00:09]}  Bxc5 {[%clk 0:00:52]} 24. Nxc5 {[%clk 0:00:10]}  Qxe5 {[%clk 0:00:50]} 25. Nxb7 {[%clk 0:00:10]}  c5 {[%clk 0:00:34]} 26. Nxa5 {[%clk 0:00:07]}  Qb2 {[%clk 0:00:30]} 27. a4 {[%clk 0:00:05]}  Qc3 {[%clk 0:00:23]} 28. Qd8+ {[%clk 0:00:05]}  Kh7 {[%clk 0:00:22]} 29. h3 {[%clk 0:00:03]}  Qe1 {[%clk 0:00:16]} 30. g3 {[%clk 0:00:01]}  Bf5 {[%clk 0:00:11]} 31. Kg2 {[%clk 0:00:01]}  Ne4 {[%clk 0:00:11]} 0-1


[Site "https://www.chess.com"]

[Event "Titled Tuesday Blitz March 28 Late 2023"]
[White "a-z30"]
[Black "Fernandez Sanchez, Mario Andres"]
[BlackFideId "6501621"]
[WhiteElo "2501"]
[BlackElo "2050"]
[Result "0-1"]
[Round "09"]
[TimeControl "180+2"]
[Date "2023.03.28"]
[WhiteClock "0:00:05"]
[BlackClock "0:01:30"]

1. d3 {[%clk 0:03:00]}  d5 {[%clk 0:02:59]} 2. Nf3 {[%clk 0:03:01]}  Nf6 {[%clk 0:02:59]} 3. g3 {[%clk 0:03:02]}  Bf5 {[%clk 0:02:59]} 4. Bg2 {[%clk 0:03:03]}  e6 {[%clk 0:02:59]} 5. O-O {[%clk 0:03:03]}  h6 {[%clk 0:02:59]} 6. c4 {[%clk 0:03:04]}  c6 {[%clk 0:02:58]} 7. cxd5 {[%clk 0:03:05]}  exd5 {[%clk 0:02:58]} 8. Nc3 {[%clk 0:03:06]}  Be7 {[%clk 0:02:57]} 9. e4 {[%clk 0:03:04]}  dxe4 {[%clk 0:02:57]} 10. dxe4 {[%clk 0:03:00]}  Qxd1 {[%clk 0:02:51]} 11. Rxd1 {[%clk 0:02:59]}  Nxe4 {[%clk 0:02:51]} 12. Re1 {[%clk 0:02:45]}  Nxc3 {[%clk 0:02:46]} 13. bxc3 {[%clk 0:02:46]}  Kf8 {[%clk 0:02:35]} 14. Nd4 {[%clk 0:02:45]}  Bg6 {[%clk 0:02:27]} 15. Bf4 {[%clk 0:02:33]}  Nd7 {[%clk 0:02:25]} 16. Nxc6 {[%clk 0:01:42]}  bxc6 {[%clk 0:02:22]} 17. Bxc6 {[%clk 0:01:42]}  Rd8 {[%clk 0:02:21]} 18. Rad1 {[%clk 0:01:41]}  Nf6 {[%clk 0:02:15]} 19. Rxd8+ {[%clk 0:00:36]}  Bxd8 {[%clk 0:02:16]} 20. Bd6+ {[%clk 0:00:19]}  Kg8 {[%clk 0:02:16]} 21. f3 {[%clk 0:00:19]}  Kh7 {[%clk 0:02:11]} 22. g4 {[%clk 0:00:20]}  Bb6+ {[%clk 0:02:08]} 23. Kg2 {[%clk 0:00:20]}  Rc8 {[%clk 0:02:00]} 24. Bb7 {[%clk 0:00:17]}  Rxc3 {[%clk 0:01:58]} 25. Re2 {[%clk 0:00:16]}  Re3 {[%clk 0:01:55]} 26. Rxe3 {[%clk 0:00:14]}  Bxe3 {[%clk 0:01:54]} 27. a4 {[%clk 0:00:15]}  Nd7 {[%clk 0:01:50]} 28. h4 {[%clk 0:00:14]}  Bd3 {[%clk 0:01:49]} 29. a5 {[%clk 0:00:11]}  Bc5 {[%clk 0:01:48]} 30. Bc7 {[%clk 0:00:11]}  f6 {[%clk 0:01:44]} 31. h5 {[%clk 0:00:11]}  Ne5 {[%clk 0:01:44]} 32. Bd5 {[%clk 0:00:08]}  Bc4 {[%clk 0:01:40]} 33. Be4+ {[%clk 0:00:07]}  Kg8 {[%clk 0:01:39]} 34. Kg3 {[%clk 0:00:07]}  Kf7 {[%clk 0:01:39]} 35. f4 {[%clk 0:00:07]}  Nd7 {[%clk 0:01:35]} 36. g5 {[%clk 0:00:07]}  fxg5 {[%clk 0:01:34]} 37. fxg5 {[%clk 0:00:08]}  hxg5 {[%clk 0:01:34]} 38. Kg4 {[%clk 0:00:08]}  Be3 {[%clk 0:01:34]} 39. Bg6+ {[%clk 0:00:07]}  Ke7 {[%clk 0:01:30]} 40. Bb8 {[%clk 0:00:05]}  Nxb8 {[%clk 0:01:30]} 0-1


[Site "https://www.chess.com"]

[Event "Titled Tuesday Blitz March 28 Late 2023"]
[White "Wu, Sibo"]
[Black "Estrada Nieto, Julian"]
[WhiteFideId "8606048"]
[BlackFideId "5101018"]
[WhiteElo "2301"]
[BlackElo "2176"]
[Result "0-1"]
[Round "09"]
[TimeControl "180+2"]
[Date "2023.03.28"]
[WhiteClock "0:00:04"]
[BlackClock "0:00:15"]

1. d4 {[%clk 0:03:00]}  d5 {[%clk 0:02:59]} 2. Bf4 {[%clk 0:03:00]}  Nf6 {[%clk 0:02:59]} 3. e3 {[%clk 0:03:00]}  c5 {[%clk 0:02:59]} 4. Nf3 {[%clk 0:02:59]}  Nc6 {[%clk 0:02:58]} 5. Nbd2 {[%clk 0:02:58]}  cxd4 {[%clk 0:02:56]} 6. exd4 {[%clk 0:02:58]}  Qb6 {[%clk 0:02:57]} 7. Nb3 {[%clk 0:02:57]}  Bf5 {[%clk 0:02:53]} 8. c3 {[%clk 0:02:57]}  e6 {[%clk 0:02:52]} 9. a4 {[%clk 0:02:55]}  a6 {[%clk 0:02:51]} 10. Be2 {[%clk 0:02:54]}  Be7 {[%clk 0:02:50]} 11. O-O {[%clk 0:02:53]}  O-O {[%clk 0:02:48]} 12. Ne5 {[%clk 0:02:35]}  Nxe5 {[%clk 0:02:47]} 13. Bxe5 {[%clk 0:02:36]}  Ne4 {[%clk 0:02:44]} 14. a5 {[%clk 0:02:28]}  Qc6 {[%clk 0:02:33]} 15. Nc1 {[%clk 0:02:03]}  Nd6 {[%clk 0:02:21]} 16. Nd3 {[%clk 0:01:35]}  Nc4 {[%clk 0:02:20]} 17. Ra2 {[%clk 0:01:35]}  Bd6 {[%clk 0:02:08]} 18. Bxd6 {[%clk 0:01:31]}  Qxd6 {[%clk 0:02:08]} 19. Nc5 {[%clk 0:01:29]}  Qc6 {[%clk 0:01:44]} 20. Bxc4 {[%clk 0:01:00]}  dxc4 {[%clk 0:01:44]} 21. Ra4 {[%clk 0:00:57]}  Qb5 {[%clk 0:01:25]} 22. Rb4 {[%clk 0:00:51]}  Qxa5 {[%clk 0:01:20]} 23. Nxb7 {[%clk 0:00:48]}  Qd5 {[%clk 0:01:12]} 24. Nc5 {[%clk 0:00:45]}  a5 {[%clk 0:01:08]} 25. Ra4 {[%clk 0:00:36]}  Rfb8 {[%clk 0:01:06]} 26. Ra2 {[%clk 0:00:29]}  Rb5 {[%clk 0:00:55]} 27. Re1 {[%clk 0:00:28]}  h6 {[%clk 0:00:48]} 28. Qe2 {[%clk 0:00:26]}  Rab8 {[%clk 0:00:46]} 29. h3 {[%clk 0:00:24]}  Bg6 {[%clk 0:00:42]} 30. Rea1 {[%clk 0:00:24]}  e5 {[%clk 0:00:38]} 31. Rxa5 {[%clk 0:00:17]}  Rxa5 {[%clk 0:00:34]} 32. Rxa5 {[%clk 0:00:16]}  exd4 {[%clk 0:00:33]} 33. cxd4 {[%clk 0:00:10]}  Qxd4 {[%clk 0:00:33]} 34. Qf3 {[%clk 0:00:05]}  Qxb2 {[%clk 0:00:27]} 35. Ra8 {[%clk 0:00:05]}  Rxa8 {[%clk 0:00:23]} 36. Qxa8+ {[%clk 0:00:05]}  Kh7 {[%clk 0:00:24]} 37. Qd5 {[%clk 0:00:04]}  Qc1+ {[%clk 0:00:19]} 38. Kh2 {[%clk 0:00:04]}  Qf4+ {[%clk 0:00:18]} 39. Kg1 {[%clk 0:00:04]}  c3 {[%clk 0:00:18]} 40. Nd7 {[%clk 0:00:03]}  c2 {[%clk 0:00:15]} 41. Nf8+ {[%clk 0:00:04]}  Kg8 {[%clk 0:00:15]} 42. Nxg6 {[%clk 0:00:04]}  c1=Q+ {[%clk 0:00:15]} 0-1


[Site "https://www.chess.com"]

[Event "Titled Tuesday Blitz March 28 Late 2023"]
[White "Rose, Felix"]
[Black "Olsson, William"]
[WhiteFideId "5105722"]
[BlackFideId "1741721"]
[WhiteElo "2039"]
[BlackElo "2197"]
[Result "1-0"]
[Round "09"]
[TimeControl "180+2"]
[Date "2023.03.28"]
[WhiteClock "0:00:10"]
[BlackClock "0:00:02"]

1. e4 {[%clk 0:03:00]}  c5 {[%clk 0:03:00]} 2. Nf3 {[%clk 0:03:00]}  d6 {[%clk 0:03:00]} 3. d4 {[%clk 0:03:00]}  cxd4 {[%clk 0:03:00]} 4. Nxd4 {[%clk 0:03:01]}  Nf6 {[%clk 0:03:01]} 5. Nc3 {[%clk 0:03:02]}  g6 {[%clk 0:03:02]} 6. Be3 {[%clk 0:03:02]}  Bg7 {[%clk 0:03:02]} 7. f3 {[%clk 0:03:03]}  O-O {[%clk 0:03:02]} 8. Qd2 {[%clk 0:03:03]}  Nc6 {[%clk 0:03:03]} 9. O-O-O {[%clk 0:03:04]}  d5 {[%clk 0:03:03]} 10. Qe1 {[%clk 0:03:04]}  e5 {[%clk 0:03:03]} 11. Nxc6 {[%clk 0:03:05]}  bxc6 {[%clk 0:03:04]} 12. exd5 {[%clk 0:03:05]}  Nxd5 {[%clk 0:03:05]} 13. Ne4 {[%clk 0:03:02]}  Qc7 {[%clk 0:02:59]} 14. Bc5 {[%clk 0:03:00]}  Rd8 {[%clk 0:02:42]} 15. g4 {[%clk 0:02:58]}  Be6 {[%clk 0:02:21]} 16. h4 {[%clk 0:02:52]}  h6 {[%clk 0:02:21]} 17. h5 {[%clk 0:02:50]}  f5 {[%clk 0:02:20]} 18. gxf5 {[%clk 0:02:49]}  gxf5 {[%clk 0:02:21]} 19. Nf2 {[%clk 0:02:31]}  Rab8 {[%clk 0:02:16]} 20. Rg1 {[%clk 0:02:29]}  Kh7 {[%clk 0:02:10]} 21. Bd3 {[%clk 0:02:23]}  e4 {[%clk 0:02:09]} 22. b3 {[%clk 0:02:04]}  Qf4+ {[%clk 0:01:45]} 23. Rd2 {[%clk 0:01:29]}  Bc3 {[%clk 0:01:22]} 24. fxe4 {[%clk 0:01:25]}  Nb4 {[%clk 0:00:53]} 25. Be3 {[%clk 0:01:16]}  Nxd3+ {[%clk 0:00:49]} 26. Nxd3 {[%clk 0:01:16]}  Bxd2+ {[%clk 0:00:39]} 27. Bxd2 {[%clk 0:01:07]}  Qxe4 {[%clk 0:00:23]} 28. Qg3 {[%clk 0:00:53]}  Qg4 {[%clk 0:00:18]} 29. Qc7+ {[%clk 0:00:49]}  Rd7 {[%clk 0:00:17]} 30. Qxb8 {[%clk 0:00:38]}  Qxg1+ {[%clk 0:00:16]} 31. Kb2 {[%clk 0:00:39]}  Qd4+ {[%clk 0:00:17]} 32. Bc3 {[%clk 0:00:38]}  Rd8 {[%clk 0:00:14]} 33. Qg3 {[%clk 0:00:24]}  Qg4 {[%clk 0:00:13]} 34. Qc7+ {[%clk 0:00:22]}  Rd7 {[%clk 0:00:13]} 35. Qxc6 {[%clk 0:00:22]}  f4 {[%clk 0:00:10]} 36. Ne5 {[%clk 0:00:21]}  Qf5 {[%clk 0:00:01]} 37. Nxd7 {[%clk 0:00:19]}  Bxd7 {[%clk 0:00:02]} 38. Qd6 {[%clk 0:00:12]}  Kg8 {[%clk 0:00:02]} 39. Qxh6 {[%clk 0:00:10]}  f3 {[%clk 0:00:02]} 40. Qg7# {[%clk 0:00:10]} 1-0


[Site "https://www.chess.com"]

[Event "Titled Tuesday Blitz March 28 Late 2023"]
[White "WindWhistler11"]
[Black "Svicevic, Rastko"]
[BlackFideId "916315"]
[WhiteElo "2472"]
[BlackElo "2071"]
[Result "1-0"]
[Round "09"]
[TimeControl "180+2"]
[Date "2023.03.28"]
[WhiteClock "0:00:05"]
[BlackClock "0:00:01"]

1. Nf3 {[%clk 0:03:00]}  d5 {[%clk 0:02:58]} 2. c4 {[%clk 0:03:00]}  e6 {[%clk 0:02:53]} 3. g3 {[%clk 0:02:59]}  c6 {[%clk 0:02:53]} 4. Bg2 {[%clk 0:03:00]}  g6 {[%clk 0:02:52]} 5. O-O {[%clk 0:02:58]}  Bg7 {[%clk 0:02:53]} 6. Qc2 {[%clk 0:02:57]}  Ne7 {[%clk 0:02:52]} 7. d3 {[%clk 0:02:54]}  O-O {[%clk 0:02:46]} 8. Nc3 {[%clk 0:02:54]}  d4 {[%clk 0:02:37]} 9. Na4 {[%clk 0:02:54]}  e5 {[%clk 0:02:29]} 10. b4 {[%clk 0:02:48]}  b6 {[%clk 0:02:29]} 11. b5 {[%clk 0:02:39]}  Bb7 {[%clk 0:02:27]} 12. bxc6 {[%clk 0:02:38]}  Bxc6 {[%clk 0:02:21]} 13. Ba3 {[%clk 0:02:35]}  Qd7 {[%clk 0:02:19]} 14. Nb2 {[%clk 0:02:26]}  Na6 {[%clk 0:02:18]} 15. Bxe7 {[%clk 0:01:31]}  Qxe7 {[%clk 0:02:17]} 16. Nd2 {[%clk 0:01:24]}  Bxg2 {[%clk 0:02:10]} 17. Kxg2 {[%clk 0:01:25]}  Nc5 {[%clk 0:02:06]} 18. Na4 {[%clk 0:01:21]}  f5 {[%clk 0:02:02]} 19. Nxc5 {[%clk 0:01:20]}  Qxc5 {[%clk 0:02:02]} 20. Rab1 {[%clk 0:01:18]}  Rae8 {[%clk 0:01:57]} 21. f3 {[%clk 0:01:10]}  Bh6 {[%clk 0:01:50]} 22. Nb3 {[%clk 0:01:08]}  Qc6 {[%clk 0:01:48]} 23. c5 {[%clk 0:01:06]}  e4 {[%clk 0:01:27]} 24. Nxd4 {[%clk 0:00:55]}  exf3+ {[%clk 0:01:24]} 25. exf3 {[%clk 0:00:52]}  Qxc5 {[%clk 0:01:17]} 26. Qb3+ {[%clk 0:00:49]}  Kh8 {[%clk 0:00:48]} 27. Ne6 {[%clk 0:00:48]}  Rxe6 {[%clk 0:00:42]} 28. Qxe6 {[%clk 0:00:49]}  Qc2+ {[%clk 0:00:42]} 29. Kh1 {[%clk 0:00:48]}  Qxd3 {[%clk 0:00:39]} 30. Rbd1 {[%clk 0:00:42]}  Qc3 {[%clk 0:00:28]} 31. Qe7 {[%clk 0:00:30]}  a5 {[%clk 0:00:26]} 32. Rd8 {[%clk 0:00:23]}  Qb4 {[%clk 0:00:17]} 33. Rxf8+ {[%clk 0:00:16]}  Bxf8 {[%clk 0:00:16]} 34. Qf6+ {[%clk 0:00:10]}  Bg7 {[%clk 0:00:14]} 35. Qd8+ {[%clk 0:00:10]}  Bf8 {[%clk 0:00:13]} 36. Rc1 {[%clk 0:00:08]}  Qa3 {[%clk 0:00:09]} 37. Qd4+ {[%clk 0:00:05]}  Kg8 {[%clk 0:00:07]} 38. Qd5+ {[%clk 0:00:05]}  Kh8 {[%clk 0:00:06]} 39. Rc8 {[%clk 0:00:04]}  Qe7 {[%clk 0:00:04]} 40. Qd4+ {[%clk 0:00:04]}  Kg8 {[%clk 0:00:02]} 41. Qc4+ {[%clk 0:00:04]}  Kg7 {[%clk 0:00:01]} 42. Qc3+ {[%clk 0:00:05]} 1-0


[Site "https://www.chess.com"]

[Event "Titled Tuesday Blitz March 28 Late 2023"]
[White "Oro, Faustino"]
[Black "Golubev, Mikhail"]
[WhiteFideId "20000197"]
[BlackFideId "14100983"]
[WhiteElo "1984"]
[BlackElo "2374"]
[Result "1-0"]
[Round "09"]
[TimeControl "180+2"]
[Date "2023.03.28"]
[WhiteClock "0:00:13"]
[BlackClock "0:00:02"]

1. e4 {[%clk 0:03:00]}  c5 {[%clk 0:02:59]} 2. Nf3 {[%clk 0:02:58]}  d6 {[%clk 0:02:59]} 3. d4 {[%clk 0:02:58]}  Nf6 {[%clk 0:02:59]} 4. Nc3 {[%clk 0:02:56]}  cxd4 {[%clk 0:02:59]} 5. Nxd4 {[%clk 0:02:57]}  g6 {[%clk 0:02:59]} 6. Be3 {[%clk 0:02:52]}  Bg7 {[%clk 0:02:59]} 7. f3 {[%clk 0:02:53]}  a6 {[%clk 0:02:59]} 8. Qd2 {[%clk 0:02:48]}  h5 {[%clk 0:02:58]} 9. O-O-O {[%clk 0:02:46]}  Nbd7 {[%clk 0:02:58]} 10. Bc4 {[%clk 0:02:35]}  Qc7 {[%clk 0:02:58]} 11. Bb3 {[%clk 0:02:34]}  b5 {[%clk 0:02:58]} 12. Kb1 {[%clk 0:02:30]}  Bb7 {[%clk 0:02:54]} 13. Rhe1 {[%clk 0:02:28]}  Nb6 {[%clk 0:02:23]} 14. Qe2 {[%clk 0:02:16]}  O-O {[%clk 0:01:56]} 15. h3 {[%clk 0:01:52]}  b4 {[%clk 0:01:31]} 16. Na4 {[%clk 0:01:51]}  Nxa4 {[%clk 0:01:28]} 17. Bxa4 {[%clk 0:01:51]}  e5 {[%clk 0:01:21]} 18. Nb3 {[%clk 0:01:43]}  d5 {[%clk 0:01:22]} 19. Bc5 {[%clk 0:01:27]}  Rfc8 {[%clk 0:01:13]} 20. Bxb4 {[%clk 0:01:17]}  dxe4 {[%clk 0:01:12]} 21. Nc5 {[%clk 0:01:12]}  exf3 {[%clk 0:01:04]} 22. gxf3 {[%clk 0:01:13]}  Nd5 {[%clk 0:00:53]} 23. Ba3 {[%clk 0:01:10]}  Bc6 {[%clk 0:00:47]} 24. Bb3 {[%clk 0:01:01]}  Rd8 {[%clk 0:00:47]} 25. Qc4 {[%clk 0:00:54]}  Ne3 {[%clk 0:00:35]} 26. Rxd8+ {[%clk 0:00:52]}  Rxd8 {[%clk 0:00:34]} 27. Qe2 {[%clk 0:00:52]}  Nf5 {[%clk 0:00:26]} 28. Nxa6 {[%clk 0:00:51]}  Qb6 {[%clk 0:00:24]} 29. Bc5 {[%clk 0:00:46]}  Qb7 {[%clk 0:00:22]} 30. Nb4 {[%clk 0:00:42]}  Bxf3 {[%clk 0:00:22]} 31. Qf2 {[%clk 0:00:39]}  Nd4 {[%clk 0:00:21]} 32. Bc4 {[%clk 0:00:32]}  Rc8 {[%clk 0:00:15]} 33. Nd3 {[%clk 0:00:31]}  Be4 {[%clk 0:00:11]} 34. Bxf7+ {[%clk 0:00:21]}  Qxf7 {[%clk 0:00:10]} 35. Qxf7+ {[%clk 0:00:22]}  Kxf7 {[%clk 0:00:11]} 36. Rxe4 {[%clk 0:00:22]}  Ne6 {[%clk 0:00:09]} 37. Be3 {[%clk 0:00:22]}  Rc6 {[%clk 0:00:04]} 38. Rxe5 {[%clk 0:00:20]}  Rc4 {[%clk 0:00:02]} 39. Rd5 {[%clk 0:00:19]}  Rh4 {[%clk 0:00:02]} 40. Rd7+ {[%clk 0:00:20]}  Ke8 {[%clk 0:00:02]} 41. Rd6 {[%clk 0:00:19]}  Ke7 {[%clk 0:00:02]} 42. Ra6 {[%clk 0:00:12]}  Rxh3 {[%clk 0:00:02]} 43. Bc1 {[%clk 0:00:13]} 1-0


[Site "https://www.chess.com"]